bitfinex-derivatives/quotes_SOLF0:USTF0_20251216
["timestamp","ask_amount","ask_price","bid_price","bid_amount"]
[1765895772007,72.9732,128.73,128.69,1.86191192]
[1765895772205,121.32503525,128.78,128.69,3.29]
[1765895772393,12.58693525,128.8,128.72,5.15191192]
[1765895772597,0.05220839,128.75,128.74,3.29]
[1765895772898,72.9683,128.82,128.74,3.29]
[1765895773095,65.98,128.82,128.77,1.86007674]
[1765895773296,108.7209,128.8,128.73,3.29]
[1765895773497,6.9899,128.79,128.74,1.86207821]
[1765895773698,6.9899,128.79,128.75,1.86207821]
[1765895773898,0.05467601,128.78,128.76,0.04902061]
[1765895774202,0.05467601,128.78,128.77,5.15229576]
[1765895774411,0.05467601,128.78,128.76,0.04902061]
[1765895774600,0.05467601,128.78,128.77,1.8622197]
[1765895774805,65.98,128.82,128.77,5.1522197]
[1765895775008,187.24560105,128.85,128.76,0.04902061]
[1765895775203,108.6902,128.84,128.73,108.7751]
[1765895775703,65.96,128.85,128.76,108.7478]
[1765895775905,121.25530105,128.89,128.79,108.78431555]
[1765895776206,128.23600105,128.89,128.83,1.92157324]
[1765895776407,12.60680105,128.89,128.83,0.05974691]
[1765895776613,12.60680105,128.89,128.84,1.86233693]
[1765895776805,6.9846,128.89,128.84,1.86233693]
[1765895777005,65.96,128.9,128.85,1.86210457]
[1765895777314,65.96,128.9,128.86,1.91656818]
[1765895777515,65.96,128.9,128.86,0.05446361]
[1765895777812,174.5958,128.9,128.86,1.9174929]
[1765895778009,108.6439,128.89,128.86,0.05446361]
[1765895778403,174.5958,128.9,128.86,0.05446361]
[1765895778605,6.9846,128.89,128.86,0.05446361]
[1765895778915,65.96,128.9,128.86,0.05446361]
[1765895779218,6.9822,128.93,128.87,1.86421291]
[1765895779414,6.9822,128.93,128.89,0.05941231]
[1765895779613,78.54680105,128.94,128.89,0.05941231]
[1765895779921,187.15040105,128.94,128.89,0.05941231]
[1765895780116,108.6192,128.92,128.89,0.05941231]
[1765895780314,6.983,128.92,128.89,0.05941231]
[1765895780821,115.612,128.91,128.89,0.05941231]
[1765895781421,29.76190298,128.93,128.89,0.05941231]
[1765895781714,115.73720417,128.97,128.9,1.86348712]
[1765895781715,108.5765,128.97,128.9,1.86348712]
[1765895782014,6.9808,128.96,128.92,0.05608549]
[1765895782205,65.92,128.97,128.92,0.05608549]
[1765895782412,108.5851,128.96,128.92,0.05608549]
[1765895782708,6.9819,128.94,128.92,0.05608549]
[1765895782912,108.5851,128.96,128.92,0.05608549]
[1765895783113,65.92,128.97,128.92,0.05608549]
[1765895783309,108.5864,128.96,128.92,0.05608549]
[1765895783510,108.6025,128.94,128.92,0.05608549]
[1765895783717,108.619,128.92,128.84,3.29]
[1765895783921,108.619,128.92,128.86,1.8656731]
[1765895784221,65.92,128.93,128.88,1.8656731]
[1765895784433,65.92,128.93,128.88,5.1556731]
[1765895784617,0.05709231,128.92,128.9,1.8656731]
[1765895784821,0.05709231,128.92,128.9,5.1556731]
[1765895785120,65.92,128.97,128.91,3.29]
[1765895785322,72.9,128.97,128.92,1.86408584]
[1765895785516,72.9,128.97,128.93,1.86408584]
[1765895785713,72.9,128.97,128.91,3.29]
[1765895785917,222.87090417,129.04,128.94,3.29]
[1765895785918,65.9,129.01,128.94,3.29]
[1765895786226,108.5238,129.04,128.98,1.85962947]
[1765895786227,108.5189,129.04,128.98,1.85962947]
[1765895786414,108.5189,129.04,128.96,0.05201397]
[1765895786723,108.5446,129.01,128.99,0.05884447]
[1765895786914,108.5596,128.99,128.9,3.29]
[1765895787108,6.9804,128.96,128.93,1.85874544]
[1765895787319,6.9804,128.96,128.86,3.29]
[1765895787320,108.6105,128.93,128.86,3.29]
[1765895787510,108.6268,128.91,128.89,1.86003694]
[1765895787715,6.9836,128.9,128.83,3.29]
[1765895787915,0.05033845,128.88,128.86,3.29]
[1765895788126,0.05587215,128.88,128.86,3.3404096]
[1765895788618,65.88,128.94,128.87,3.29]
[1765895788923,65.88,128.94,128.92,1.85896474]
[1765895789517,65.88,128.94,128.92,0.05552926]
[1765895790118,181.464,128.94,128.92,0.05552926]
[1765895790319,65.88,128.94,128.85,111.9665]
[1765895790521,65.88,128.94,128.89,1.85981837]
[1765895790818,6.9823,128.93,128.89,1.85981837]
[1765895791518,0.05371116,128.92,128.9,0.05974904]
[1765895791912,0.05371116,128.92,128.91,1.85851905]
[1765895792120,0.05371116,128.92,128.91,3.29]
[1765895792313,65.88,128.97,128.91,4.85]
[1765895792517,72.8601,128.97,128.93,1.85599969]
[1765895793016,65.88,128.97,128.93,1.85599969]
[1765895793212,65.88,128.97,128.92,1.85599969]
[1765895793417,65.88,128.97,128.93,0.05788813]
[1765895793720,6.9813,128.95,128.93,0.05788813]
[1765895794615,115.5749,128.95,128.93,0.05788813]
[1765895795013,115.5749,128.95,128.85,3.13]
[1765895795212,108.62,128.92,128.89,1.85629498]
[1765895795417,108.62,128.92,128.85,3.13]
[1765895795622,108.62,128.92,128.88,1.85663308]
[1765895795812,6.9833,128.91,128.88,1.85663308]
[1765895796213,0.04950539,128.91,128.88,1.90629366]
[1765895796430,0.04950539,128.91,128.89,1.85663308]
[1765895796629,0.04950539,128.91,128.88,3.17966058]
[1765895796926,7.03280539,128.91,128.88,0.04966058]
[1765895797324,0.04950539,128.91,128.89,1.85530122]
[1765895797513,0.04950539,128.91,128.9,1.85530122]
[1765895797713,0.04950539,128.91,128.88,0.04966058]
[1765895798334,0.04950539,128.91,128.89,1.8546882]
[1765895798522,0.04950539,128.91,128.89,1.85457616]
[1765895799526,7.03280539,128.91,128.88,0.04966058]
[1765895799824,0.04950539,128.91,128.88,0.04966058]
[1765895800829,0.04950539,128.91,128.89,1.85403517]
[1765895801420,0.04950539,128.91,128.89,4.98403517]
[1765895801625,65.86,128.97,128.89,3.13]
[1765895801819,108.5476,129.01,128.92,3.13]
[1765895802132,7.73494502,129.01,128.96,1.85326736]
[1765895802431,14.71304502,129.01,128.94,3.13]
[1765895802724,116.28104502,129.01,128.96,0.0546595]
[1765895802922,7.73494502,129.0,128.96,0.0546595]
[1765895803821,116.28874502,129.0,128.96,0.0546595]
[1765895804134,6.979,128.99,128.96,0.0546595]
[1765895804428,174.3978,129.02,128.96,0.0546595]
[1765895804729,7.73494502,129.01,128.96,0.0546595]
[1765895804930,6.9785,129.0,128.96,0.0546595]
[1765895805932,6.979,128.99,128.96,0.0546595]
[1765895806126,7.73494502,129.01,128.96,0.0546595]
[1765895806330,65.86,129.02,128.96,3.1846595]
[1765895806521,174.4007,129.02,128.98,1.84737273]
[1765895806725,116.27804502,129.01,128.99,0.05853057]
[1765895806919,116.27804502,129.01,128.92,10.1123]
[1765895807124,6.9795,128.98,128.95,1.84837937]
[1765895807324,6.9795,128.98,128.94,1.84837937]
[1765895807532,116.27804502,129.01,128.95,1.8489239]
[1765895807722,116.28174502,129.01,128.95,1.8489239]
[1765895808036,0.05269962,128.99,128.97,0.05115041]
[1765895808738,0.05269962,128.99,128.97,3.18115041]
[1765895808930,0.05269962,128.99,128.98,4.97911166]
[1765895809129,0.05269962,128.99,128.98,3.13]
[1765895809433,7.73494502,129.04,128.98,3.13]
[1765895809732,116.25634502,129.04,128.99,1.85075983]
[1765895809940,6.9773,129.02,128.98,4.98075983]
[1765895810231,7.73494502,129.04,128.99,1.85104487]
[1765895810435,6.9775,129.02,129.0,0.04914293]
[1765895810628,116.24804502,129.05,129.0,0.04914293]
[1765895810835,7.73494502,129.05,129.0,0.04914293]
[1765895811323,116.24714502,129.05,129.0,0.04914293]
[1765895811736,7.73494502,129.05,129.0,3.17914293]
[1765895811932,65.84,129.06,129.0,3.17914293]
[1765895812234,108.5103,129.05,129.0,0.04914293]
[1765895812431,174.3474,129.06,129.0,0.04914293]
[1765895812636,6.9758,129.05,129.01,1.85576919]
[1765895812930,174.3449,129.06,129.0,3.17914293]
[1765895813133,65.84,129.06,129.01,1.85588052]
[1765895813334,65.84,129.06,129.01,4.98588052]
[1765895813529,65.84,129.06,129.01,3.13]
[1765895814533,6.9757,129.05,129.01,3.13]
[1765895814937,65.84,129.06,129.01,3.13]
[1765895815137,14.70964502,129.07,129.03,3.13]
[1765895815337,14.70964502,129.07,129.04,0.0575723]
[1765895815946,6.9754,129.06,129.04,0.0575723]
[1765895816130,7.73494502,129.07,129.04,0.0575723]
[1765895816342,6.9751,129.06,129.04,0.0575723]
[1765895816637,7.73494502,129.07,129.04,0.0575723]
[1765895816838,6.9751,129.06,129.04,0.0575723]
[1765895817437,5.58707398,129.05,129.04,0.0575723]
[1765895817638,108.5291,129.03,128.93,3.13]
[1765895817834,5.58707398,129.02,128.98,3.13]
[1765895818038,5.58707398,129.04,129.0,1.87584509]
[1765895818334,6.9767,129.03,128.98,3.13]
[1765895818532,5.58707398,129.03,129.0,1.876124]
[1765895818834,0.05628916,129.02,129.0,5.006124]
[1765895819044,0.05628916,129.02,128.99,0.05844089]
[1765895819232,5.58707398,129.01,128.99,0.05844089]
[1765895819428,5.58707398,129.0,128.99,0.05844089]
[1765895820139,5.58707398,129.0,128.92,3.13]
[1765895820334,5.58707398,128.99,128.95,1.87971768]
[1765895820539,5.58707398,128.98,128.92,10.1125]
[1765895820748,121.898819,128.97,128.93,1.88193629]
[1765895821038,5.58707398,128.96,128.93,1.88193629]
[1765895821236,0.0549539,128.96,128.94,5.01193629]
[1765895821542,7.15480417,129.02,128.97,3.13]
[1765895821742,5.64212024,129.01,128.98,5.01114193]
[1765895821948,7.15480417,129.03,128.99,5.01114193]
[1765895821949,5.64212024,129.0,128.99,5.01114193]
[1765895822142,5.64212024,129.02,128.95,3.13]
[1765895822440,5.64212024,129.01,128.98,5.01046391]
[1765895822638,6.9752,129.06,129.0,3.13]
[1765895822941,5.64098715,129.05,129.03,5.00875969]
[1765895823137,7.15480417,129.08,129.03,3.13]
[1765895823342,5.63917599,129.07,129.05,3.13]
[1765895823642,0.02697563,129.07,129.06,1.87758967]
[1765895823845,0.02697563,129.07,129.05,0.05512286]
[1765895823846,5.66724909,129.07,129.05,0.05512286]
[1765895824033,5.64027346,129.06,129.05,0.05512286]
[1765895824239,0.02697563,129.07,129.05,0.05512286]
[1765895824442,0.02697563,129.07,129.06,5.12663366]
[1765895824636,0.02697563,129.07,129.05,0.05512286]
[1765895825041,0.02697563,129.07,129.06,1.8768622]
[1765895825730,108.51937563,129.07,129.05,0.05512286]
[1765895825935,5.62524974,129.07,129.05,0.05512286]
[1765895826144,0.02697563,129.07,129.06,5.12670115]
[1765895826345,0.02697563,129.07,129.06,3.25]
[1765895826749,0.02697563,129.07,129.05,0.05512286]
[1765895826936,0.02697563,129.07,129.05,3.30512286]
[1765895827136,0.02697563,129.07,129.06,1.87657291]
[1765895827755,0.02697563,129.07,129.05,0.05512286]
[1765895828044,7.00157563,129.07,129.05,0.05512286]
[1765895828643,6.9772,129.02,128.96,3.25]
[1765895828856,174.3277,129.03,128.98,1.87746419]
[1765895829242,5.59827411,129.05,128.99,3.25]
[1765895829457,108.5178,129.04,129.0,1.87746419]
[1765895829749,6.9772,129.02,129.01,0.05280123]
[1765895829948,6.9772,129.02,129.0,0.05966904]
[1765895830148,108.5607,128.99,128.91,3.25]
[1765895830454,6.98,128.97,128.94,1.88024899]
[1765895830658,182.07824502,129.01,128.94,1.88024899]
[1765895830951,65.8,129.01,128.95,1.88024899]
[1765895831151,0.05531986,128.99,128.97,0.05342566]
[1765895831455,0.05531986,128.99,128.97,5.18367465]
[1765895831659,0.05531986,128.99,128.98,1.88024899]
[1765895831850,0.05531986,128.99,128.97,3.30342566]
[1765895832847,7.73494502,129.06,128.99,3.25]
[1765895833151,7.73494502,129.06,129.01,1.87828848]
[1765895833349,7.73494502,129.06,129.02,1.87828848]
[1765895833654,6.9758,129.05,129.0,3.25]
[1765895833848,0.05041693,129.04,129.01,1.93638973]
[1765895834055,0.05041693,129.04,129.01,0.05810577]
[1765895834356,0.05041693,129.04,129.02,5.12856634]
[1765895834554,0.05041693,129.04,129.02,3.25]
[1765895834744,0.05041693,129.04,129.01,0.05810577]
[1765895835143,174.37041693,129.04,129.01,0.05810577]
[1765895835338,14.71184502,129.03,129.01,0.05810577]
[1765895835538,108.543,129.01,128.94,3.25]
[1765895835741,108.543,129.01,128.96,1.88263022]
[1765895835943,6.9781,129.01,128.96,5.13263022]
[1765895836154,6.9781,129.01,128.97,1.88263022]
[1765895836549,0.05732041,129.0,128.98,0.05045722]
[1765895836749,0.05732041,129.0,128.98,3.30045722]
[1765895837342,108.5788,128.97,128.85,3.25]
[1765895837541,108.6033,128.94,128.85,3.25]
[1765895837856,108.5942,128.95,128.85,3.25]
[1765895838055,174.3942,128.95,128.85,3.25]
[1765895838251,6.9829,128.92,128.85,3.25]
[1765895838454,0.05649124,128.9,128.89,1.88606257]
[1765895838653,0.05649124,128.9,128.88,5.1897002]
[1765895838960,0.051824,128.9,128.89,1.88606257]
[1765895839157,0.051824,128.9,128.88,0.05205181]
[1765895839658,0.051824,128.9,128.88,3.30205181]
[1765895839958,0.051824,128.9,128.89,3.25]
[1765895840341,65.82,128.97,128.9,3.25]
[1765895840559,7.73494502,128.98,128.93,3.25]
[1765895840741,6.9806,128.96,128.89,3.25]
[1765895840946,6.9806,128.96,128.93,5.13467317]
[1765895841143,115.68760417,129.03,128.95,3.25]
[1765895841144,5.60051019,129.0,128.95,3.25]
[1765895841452,0.05003134,128.99,128.96,0.05050233]
[1765895841652,108.61353134,128.99,128.96,0.05050233]
[1765895842051,6.9795,128.98,128.96,0.05050233]
[1765895842557,0.05003134,128.99,128.96,3.30050233]
[1765895842760,0.05003134,128.99,128.96,0.05050233]
[1765895843054,0.05003134,128.99,128.96,3.30050233]
[1765895843256,0.05003134,128.99,128.96,0.05050233]
[1765895844055,14.88974919,128.97,128.79,3.25]
[1765895844257,108.6605,128.87,128.85,7.787e-05]
[1765895844445,73.55494502,128.87,128.79,3.25]
[1765895844653,174.4837,128.87,128.79,3.25]
[1765895844949,7.73494502,128.86,128.79,3.25]
[1765895845150,0.05109837,128.84,128.82,0.04960913]
[1765895845958,108.717,128.81,128.71,3.25]
[1765895846252,108.6861,128.84,128.77,5.13945282]
[1765895846446,65.84,128.85,128.78,1.88945282]
[1765895846646,65.84,128.85,128.8,5.13945282]
[1765895846846,65.84,128.85,128.81,5.13945282]
[1765895847056,0.05513243,128.84,128.82,0.05172655]
[1765895848652,128.32480871,128.84,128.82,0.00172655]
[1765895848853,108.7047,128.82,128.74,3.25]
[1765895849056,65.86,128.81,128.76,1.88353837]
[1765895849249,72.8489,128.81,128.76,1.88353837]
[1765895849558,72.8489,128.81,128.68,3.25]
[1765895849559,108.7317,128.79,128.68,3.25]
[1765895849760,108.7365,128.78,128.73,1.88187163]
[1765895850057,0.05885986,128.77,128.74,0.05241924]
[1765895850459,108.80415986,128.77,128.74,0.05241924]
[1765895850654,0.05885986,128.77,128.74,3.30241924]
[1765895851360,0.05885986,128.77,128.75,1.87667708]
[1765895851658,0.05885986,128.77,128.74,3.30241924]
[1765895852146,108.7533,128.76,128.74,0.05241924]
[1765895852347,78.47577628,128.76,128.67,112.0789]
[1765895852550,65.88,128.77,128.71,5.12541526]
[1765895852758,65.88,128.77,128.72,1.87541526]
[1765895852954,12.59577628,128.79,128.71,3.25]
[1765895853156,78.47577628,128.79,128.72,5.124555]
[1765895853353,0.05637002,128.77,128.74,1.93020242]
[1765895853661,7.04737002,128.77,128.74,0.05564742]
[1765895853955,0.05637002,128.77,128.74,0.05564742]
[1765895854150,0.05637002,128.77,128.74,3.30564742]
[1765895854554,0.05637002,128.77,128.74,0.05564742]
[1765895854954,121.35127628,128.76,128.74,0.05564742]
[1765895855260,72.8922,128.75,128.67,10.246]
[1765895855455,72.8922,128.75,128.7,1.86805493]
[1765895855957,72.8922,128.75,128.7,5.11805493]
[1765895856144,0.05467864,128.74,128.71,0.05935854]
[1765895856348,6.9932,128.73,128.71,0.05935854]
[1765895856954,108.82577864,128.74,128.71,0.05935854]
[1765895857247,0.05467864,128.74,128.71,0.05935854]
[1765895857748,0.05467864,128.74,128.71,3.30935854]
[1765895858951,0.05467864,128.74,128.71,0.05935854]
[1765895859663,0.05467864,128.74,128.71,3.30935854]
[1765895860060,0.05467864,128.74,128.72,5.10977449]
[1765895860365,12.59577628,128.82,128.74,3.25]
[1765895860555,6.9865,128.85,128.79,5.10867704]
[1765895860756,6.9865,128.85,128.8,1.85867704]
[1765895860951,6.9865,128.85,128.79,3.25]
[1765895861166,6.9865,128.85,128.75,108.7617]
[1765895861167,65.92,128.89,128.81,3.25]
[1765895861360,0.00097159,128.86,128.85,3.25]
[1765895861554,6.9818,128.94,128.85,3.25]
[1765895861758,108.6019,128.94,128.87,1.85192632]
[1765895861961,174.5189,128.95,128.88,1.85045534]
[1765895862361,72.9012,128.95,128.88,1.85045534]
[1765895862567,0.05142561,128.93,128.9,0.05712006]
[1765895862867,0.05142561,128.93,128.9,3.30712006]
[1765895863270,0.05142561,128.93,128.9,0.05712006]
[1765895863762,108.6201,128.92,128.9,0.05712006]
[1765895864260,108.6201,128.92,128.82,3.25]
[1765895864261,174.5497,128.91,128.82,3.25]
[1765895864465,174.5497,128.91,128.85,1.8515033]
[1765895864865,72.9033,128.91,128.85,5.1015033]
[1765895865059,72.9033,128.91,128.87,1.8515033]
[1765895865259,0.05887207,128.9,128.88,0.05005569]
[1765895865461,7.04297207,128.9,128.88,0.05005569]
[1765895866559,0.05887207,128.9,128.88,3.30005569]
[1765895866975,108.557,129.0,128.9,3.25]
[1765895867160,6.9796,128.98,128.92,5.0988244]
[1765895867465,6.9796,128.98,128.89,6.984]
[1765895867466,6.9796,128.98,128.93,5.0988244]
[1765895867667,6.9785,129.0,128.93,5.0988244]
[1765895867861,6.9785,129.0,128.94,1.8488244]
[1765895868067,0.05349826,128.98,128.95,0.05974709]
[1765895868664,7.03319826,128.98,128.95,0.05974709]
[1765895869364,0.05349826,128.98,128.95,0.05974709]
[1765895870171,6.9801,128.97,128.95,0.05974709]
[1765895871866,181.4374,128.97,128.95,0.05974709]
[1765895872960,72.8601,128.97,128.95,0.05974709]
[1765895873164,0.05349826,128.98,128.95,3.30974709]
[1765895873674,0.05349826,128.98,128.96,5.10539839]
[1765895873870,0.05349826,128.98,128.96,3.25]
[1765895874462,0.05349826,128.98,128.95,0.05974709]
[1765895874660,0.05349826,128.98,128.95,3.30974709]
[1765895874862,0.05349826,128.98,128.95,0.05974709]
[1765895875270,6.9801,128.97,128.95,0.05974709]
[1765895876376,0.05349826,128.98,128.95,0.05974709]
[1765895876668,0.05349826,128.98,128.95,3.30974709]
[1765895877074,0.05349826,128.98,128.95,0.05974709]
[1765895878665,6.9803,128.97,128.95,0.05974709]
[1765895878874,72.8403,128.97,128.95,0.05974709]
[1765895879261,0.05349826,128.98,128.95,3.30974709]
[1765895879474,0.05349826,128.98,128.96,3.25]
[1765895879862,0.05349826,128.98,128.97,5.10879647]
[1765895880062,0.05349826,128.98,128.97,3.25]
[1765895880471,174.3699,129.05,128.98,3.25]
[1765895880773,6.9784,129.0,128.94,10.2312]
[1765895880970,108.5453,129.01,128.96,1.85916023]
[1765895881176,108.5691,128.98,128.95,1.85916023]
[1765895881382,6.9822,128.93,128.9,3.25]
[1765895881569,108.5969,128.95,128.9,3.30207761]
[1765895881876,6.9827,128.92,128.9,0.05207761]
[1765895882269,0.05528085,128.93,128.9,3.30207761]
[1765895882477,0.05528085,128.93,128.92,3.25]
[1765895882779,0.05528085,128.93,128.9,0.05207761]
[1765895882780,0.05528085,128.93,128.9,3.30207761]
[1765895882971,0.05528085,128.93,128.91,1.86165288]
[1765895882972,7.03768085,128.93,128.91,1.86165288]
[1765895883171,7.03768085,128.93,128.9,3.30207761]
[1765895883370,0.05528085,128.93,128.91,5.11188706]
[1765895883568,0.05528085,128.93,128.92,3.25]
[1765895884379,121.16087628,128.99,128.92,3.25]
[1765895884380,121.16087628,128.99,128.92,4.81]
[1765895884561,6.9803,128.97,128.94,3.15]
[1765895884763,174.3745,129.05,128.96,3.15]
[1765895884969,65.86,129.05,128.96,3.15]
[1765895885172,6.9763,129.04,129.0,3.15]
[1765895885469,0.05073461,129.03,129.01,5.06736116]
[1765895885676,6.9776,129.02,129.01,0.05850081]
[1765895885874,0.04954624,129.03,129.01,0.05850081]
[1765895886671,108.5517,129.0,128.93,3.15]
[1765895886869,108.5767,128.97,128.94,1.85775193]
[1765895887067,121.17247628,128.97,128.89,3.15]
[1765895887281,108.6116,128.93,128.9,1.86063558]
[1765895887470,108.6187,128.92,128.85,3.15]
[1765895887671,0.05480892,128.9,128.87,1.91681247]
[1765895887871,0.05480892,128.9,128.87,3.2041855]
[1765895888170,0.05480892,128.9,128.88,1.86231687]
[1765895888772,0.05480892,128.9,128.87,0.0541855]
[1765895889074,0.05480892,128.9,128.88,1.86326473]
[1765895889978,0.05480892,128.9,128.87,0.0541855]
[1765895890276,0.05480892,128.9,128.87,3.2041855]
[1765895890473,0.05480892,128.9,128.88,1.86380473]
[1765895890674,0.05480892,128.9,128.88,5.01380473]
[1765895890877,0.05480892,128.9,128.89,1.86380473]
[1765895891073,0.05480892,128.9,128.88,3.15]
[1765895891278,0.05480892,128.9,128.87,0.0541855]
[1765895891574,0.05480892,128.9,128.87,3.2041855]
[1765895891778,0.05480892,128.9,128.89,3.15]
[1765895892083,0.00480892,128.9,128.89,3.15]
[1765895892276,6.9807,128.96,128.9,3.15]
[1765895892476,6.9807,128.96,128.93,5.01173815]
[1765895892682,187.02127628,128.99,128.93,3.15]
[1765895892873,108.5428,129.01,128.95,3.15]
[1765895893073,108.5428,129.01,128.9,3.15]
[1765895893074,108.5613,128.99,128.9,3.15]
[1765895893273,0.05229903,128.96,128.93,5.06649949]
[1765895893472,0.05229903,128.96,128.93,0.05610788]
[1765895893771,108.63979903,128.96,128.93,0.05610788]
[1765895893968,6.9811,128.95,128.93,0.05610788]
[1765895894374,0.05229903,128.96,128.93,3.20610788]
[1765895895086,7.03309903,128.96,128.93,3.20610788]
[1765895896182,6.9813,128.95,128.93,0.05610788]
[1765895896883,0.05229903,128.96,128.93,3.20610788]
[1765895897675,0.05229903,128.96,128.93,0.05610788]
[1765895897880,6.9811,128.95,128.93,0.05610788]
[1765895898278,108.6354,128.9,128.85,3.15]
[1765895898472,108.6053,128.94,128.85,3.15]
[1765895898677,65.86,128.93,128.88,5.01936096]
[1765895898877,6.9832,128.91,128.88,3.15]
[1765895899085,174.4754,128.93,128.84,3.15]
[1765895899285,174.4754,128.93,128.87,1.92905731]
[1765895899286,0.05936865,128.9,128.87,1.92905731]
[1765895899487,0.05936865,128.9,128.87,0.05874341]
[1765895899684,6.9844,128.89,128.87,0.05874341]
[1765895899985,108.6945,128.83,128.76,3.15]
[1765895900283,65.86,128.84,128.79,1.87567292]
[1765895900483,108.6777,128.85,128.81,1.87567292]
[1765895900683,108.6777,128.85,128.77,3.15]
[1765895900986,0.0552141,128.82,128.8,1.92903741]
[1765895901188,7.0435141,128.82,128.8,0.05329044]
[1765895901379,72.9035141,128.82,128.8,0.05329044]
[1765895902191,0.0552141,128.82,128.8,3.20329044]
[1765895902682,0.0552141,128.82,128.8,0.05329044]
[1765895902883,0.0552141,128.82,128.8,3.20329044]
[1765895903092,0.0552141,128.82,128.81,5.02938388]
[1765895903295,0.0552141,128.82,128.8,3.20329044]
[1765895903482,0.0552141,128.82,128.81,1.88140068]
[1765895903988,0.0552141,128.82,128.8,0.05329044]
[1765895904499,0.0552141,128.82,128.8,3.20329044]
[1765895904691,65.86,128.86,128.82,3.15]
[1765895905683,0.05653383,128.85,128.83,0.056304]
[1765895905886,6.9872,128.84,128.83,0.05595309]
[1765895906292,108.7028,128.82,128.75,3.15]
[1765895906585,6.9892,128.8,128.77,5.03452531]
[1765895906789,6.9892,128.8,128.78,1.88452531]
[1765895906988,114.29414962,128.84,128.78,5.03452531]
[1765895907186,0.05074539,128.82,128.8,0.05390296]
[1765895907388,0.05074539,128.82,128.8,3.20652806]
[1765895907691,0.05074539,128.82,128.8,0.05652806]
[1765895907991,0.05074539,128.82,128.81,5.03251462]
[1765895908176,0.05074539,128.82,128.81,3.15]
[1765895908380,0.00074539,128.82,128.81,4.71]
[1765895908787,0.00074539,128.82,128.81,3.15]
[1765895908983,0.00074539,128.82,128.8,3.20652806]
[1765895909188,0.00074539,128.82,128.81,5.0318282]
[1765895909388,0.00074539,128.82,128.81,3.15]
[1765895909983,0.00074539,128.82,128.81,4.71]
[1765895910387,0.00074539,128.82,128.81,3.15]
[1765895910586,0.00074539,128.82,128.81,4.71]
[1765895911287,0.00074539,128.82,128.81,3.15]
[1765895911893,0.00074539,128.82,128.8,0.05652806]
[1765895912089,0.00074539,128.82,128.8,3.20652806]
[1765895912696,6.98894539,128.82,128.8,0.05652806]
[1765895914693,174.6187,128.81,128.72,3.28]
[1765895914889,7.74824807,128.8,128.75,5.16104286]
[1765895915085,7.74824807,128.8,128.76,1.88104286]
[1765895915287,6.9897,128.79,128.73,3.28]
[1765895915487,13.34911629,128.83,128.77,3.28]
[1765895915691,0.05825187,128.81,128.79,0.0537494]
[1765895915893,7.04695187,128.81,128.79,0.0537494]
[1765895916197,14.8038088,128.81,128.79,0.0537494]
[1765895916797,7.04695187,128.81,128.79,0.0537494]
[1765895917997,0.05825187,128.81,128.79,0.0537494]
[1765895918596,7.8151088,128.81,128.79,0.0537494]
[1765895919191,14.8037088,128.81,128.79,0.0537494]
[1765895919386,0.05825187,128.81,128.79,0.0537494]
[1765895919588,0.05825187,128.81,128.79,3.3337494]
[1765895921299,7.04705187,128.81,128.79,3.3337494]
[1765895921505,0.05825187,128.81,128.79,3.3337494]
[1765895922001,0.05825187,128.81,128.79,0.0537494]
[1765895922203,7.04685187,128.81,128.79,0.0537494]
[1765895927105,108.6492,128.89,128.81,3.28]
[1765895927316,108.6376,128.9,128.83,5.15883734]
[1765895927610,6.9848,128.88,128.85,3.28]
[1765895928109,7.03670532,128.88,128.85,0.05822226]
[1765895928500,6.9855,128.87,128.85,0.05822226]
[1765895929101,0.05190532,128.88,128.85,3.33822226]
[1765895929605,6.9854,128.87,128.85,0.05822226]
[1765895931297,0.05190532,128.88,128.85,3.33822226]
[1765895931504,0.05190532,128.88,128.85,0.05822226]
[1765895931906,0.05190532,128.88,128.85,3.33822226]
[1765895932106,0.05190532,128.88,128.87,3.28]
[1765895932310,7.75685693,128.94,128.87,3.28]
[1765895932613,6.9825,128.93,128.89,5.16063235]
[1765895932814,7.75685693,128.94,128.89,3.28]
[1765895933110,6.9827,128.92,128.86,3.28]
[1765895933299,0.05304251,128.9,128.88,1.93490008]
[1765895933501,0.05304251,128.9,128.88,3.33520646]
[1765895933709,0.05304251,128.9,128.88,0.05520646]
[1765895933907,0.05304251,128.9,128.88,3.33520646]